[Event "Campeonato de España Universitario Relámpago"]
[Site "Zaragoza, Spain"]
[Date "2024.04.24"]
[Round "6.5"]
[White "Domingo Nunez, Alejandro"]
[Black "Garcia Escoda, Marc"]
[Result "1/2-1/2"]
[TimeControl "3 min + 2 sg"]
[WhiteFideId "22245561"]
[BlackFideId "24509655"]
[WhiteElo "2252"]
[BlackElo "2062"]

1. e4 {[%clk 00:03:02]} e6 {[%clk 00:03:03]} {[%emt 00:00:01]} 2. Nf3 {[%clk
00:03:03]} {[%emt 00:00:01]} d5 {[%clk 00:03:05]} 3. Nc3 {[%clk 00:03:04]} Nf6
{[%emt 00:00:03]} 4. e5 Nfd7 {[%clk 00:03:06]} 5. d4 {[%clk 00:03:07]} c5
{[%clk 00:03:08]} 6. dxc5 {[%clk 00:03:08]} {[%emt 00:00:02]} Nc6 {[%clk
00:03:08]} {[%emt 00:00:02]} 7. Bf4 {[%clk 00:03:09]} Bxc5 {[%clk 00:03:08]}
{[%emt 00:00:03]} 8. Bd3 {[%clk 00:03:10]} Be7 {[%clk 00:03:06]} {[%emt
00:00:04]} 9. h4 {[%clk 00:03:11]} {[%emt 00:00:01]} h6 {[%clk 00:03:07]}
{[%emt 00:00:02]} 10. h5 {[%clk 00:03:01]} {[%emt 00:00:11]} Nc5 {[%clk
00:03:08]} {[%emt 00:00:01]} 11. a3 {[%clk 00:02:53]} {[%emt 00:00:10]} Qb6
{[%clk 00:03:03]} {[%emt 00:00:07]} 12. Rb1 {[%clk 00:02:53]} {[%emt 00:00:02]}
Nxd3+ {[%clk 00:02:58]} {[%emt 00:00:07]} 13. cxd3 {[%clk 00:02:52]} {[%emt
00:00:03]} O-O {[%clk 00:02:48]} {[%emt 00:00:12]} 14. O-O {[%clk 00:02:26]}
{[%emt 00:00:28]} Bd7 {[%clk 00:02:45]} {[%emt 00:00:05]} 15. Re1 {[%clk
00:02:22]} {[%emt 00:00:06]} Rfc8 {[%clk 00:02:39]} {[%emt 00:00:08]} 16. Qd2
{[%clk 00:02:14]} {[%emt 00:00:10]} Bf8 {[%clk 00:02:37]} {[%emt 00:00:04]} 17.
Ne2 {[%clk 00:02:02]} {[%emt 00:00:13]} a5 {[%clk 00:02:24]} {[%emt 00:00:15]}
18. Be3 {[%clk 00:01:52]} {[%emt 00:00:12]} Qc7 {[%clk 00:02:22]} {[%emt
00:00:03]} 19. Rbc1 {[%clk 00:01:38]} {[%emt 00:00:16]} a4 {[%clk 00:02:21]}
{[%emt 00:00:04]} 20. Ned4 {[%clk 00:01:15]} {[%emt 00:00:24]} Qa5 {[%clk
00:02:21]} {[%emt 00:00:02]} 21. Qe2 {[%clk 00:01:12]} {[%emt 00:00:05]} b5
{[%clk 00:01:53]} {[%emt 00:00:31]} 22. Nxc6 {[%clk 00:01:10]} {[%emt
00:00:04]} Bxc6 {[%clk 00:01:40]} {[%emt 00:00:15]} 23. Nd4 {[%clk 00:01:11]}
Bd7 {[%clk 00:01:42]} {[%emt 00:00:01]} 24. Qg4 {[%clk 00:00:59]} {[%emt
00:00:14]} Kh7 {[%clk 00:01:35]} {[%emt 00:00:09]} 25. Qf4 {[%clk 00:00:51]}
{[%emt 00:00:10]} Be8 {[%clk 00:01:24]} {[%emt 00:00:12]} 26. Bd2 {[%clk
00:00:34]} {[%emt 00:00:20]} Qb6 {[%clk 00:01:13]} {[%emt 00:00:13]} 27. Nc2
{[%clk 00:00:33]} {[%emt 00:00:03]} Rc7 {[%clk 00:00:58]} {[%emt 00:00:17]} 28.
Nb4 {[%clk 00:00:26]} {[%emt 00:00:09]} Rac8 {[%clk 00:00:59]} 29. Be3 {[%clk
00:00:14]} {[%emt 00:00:14]} Rxc1 {[%clk 00:00:51]} {[%emt 00:00:10]} 30. Rxc1
{[%clk 00:00:16]} Rxc1+ {[%clk 00:00:51]} {[%emt 00:00:03]} 31. Bxc1 {[%clk
00:00:17]} {[%emt 00:00:01]} Bxb4 {[%clk 00:00:35]} {[%emt 00:00:17]} 32. Qxb4
{[%clk 00:00:17]} {[%emt 00:00:02]} d4 {[%clk 00:00:34]} {[%emt 00:00:04]} 33.
Qe7 {[%clk 00:00:09]} {[%emt 00:00:10]} Qc6 {[%clk 00:00:33]} {[%emt 00:00:03]}
34. Bd2 {[%clk 00:00:07]} {[%emt 00:00:04]} Qd7 {[%clk 00:00:28]} {[%emt
00:00:08]} 35. Qc5 {[%clk 00:00:06]} {[%emt 00:00:03]} Qc6 {[%clk 00:00:26]}
{[%emt 00:00:03]} 36. Qxd4 {[%clk 00:00:04]} {[%emt 00:00:04]} Qc2 {[%clk
00:00:22]} {[%emt 00:00:06]} 37. Qe4+ {[%clk 00:00:05]} {[%emt 00:00:01]} Kg8
{[%clk 00:00:18]} {[%emt 00:00:06]} 38. Bc3 {[%clk 00:00:06]} {[%emt 00:00:01]}
Qd1+ {[%clk 00:00:17]} {[%emt 00:00:03]} 39. Be1 {[%clk 00:00:04]} {[%emt
00:00:05]} Qxh5 {[%clk 00:00:18]} {[%emt 00:00:01]} 40. Qa8 {[%clk 00:00:04]}
{[%emt 00:00:02]} f6 {[%clk 00:00:16]} {[%emt 00:00:03]} 41. Qc8 {[%clk
00:00:04]} {[%emt 00:00:03]} Kf7 {[%clk 00:00:13]} {[%emt 00:00:05]} 42. Qc7+
{[%clk 00:00:05]} {[%emt 00:00:02]} Kg8 {[%clk 00:00:12]} {[%emt 00:00:02]} 43.
Qc8 {[%clk 00:00:05]} {[%emt 00:00:02]} fxe5 {[%clk 00:00:08]} {[%emt
00:00:06]} 44. Qxe6+ {[%clk 00:00:06]} {[%emt 00:00:01]} Bf7 {[%clk 00:00:09]}
45. Qc8+ {[%clk 00:00:06]} {[%emt 00:00:02]} Kh7 {[%clk 00:00:10]} {[%emt
00:00:02]} 46. Qc1 {[%clk 00:00:04]} {[%emt 00:00:04]} Qe2 {[%clk 00:00:08]}
{[%emt 00:00:03]} 47. Bc3 {[%clk 00:00:03]} {[%emt 00:00:02]} Bg6 {[%clk
00:00:08]} {[%emt 00:00:03]} 48. d4 {[%clk 00:00:03]} {[%emt 00:00:02]} exd4
{[%clk 00:00:08]} {[%emt 00:00:02]} 49. Bxd4 {[%clk 00:00:04]} Bh5 {[%clk
00:00:06]} {[%emt 00:00:03]} 50. Bc3 {[%clk 00:00:04]} {[%emt 00:00:02]} Qd1+
{[%clk 00:00:07]} {[%emt 00:00:01]} 51. Qxd1 {[%clk 00:00:05]} {[%emt
00:00:01]} Bxd1 {[%clk 00:00:08]} {[%emt 00:00:01]} 52. f3 {[%clk 00:00:06]}
{[%emt 00:00:01]} g5 {[%clk 00:00:07]} {[%emt 00:00:02]} 53. Kf2 {[%clk
00:00:07]} Kg6 {[%clk 00:00:08]} {[%emt 00:00:01]} 54. Ke3 {[%clk 00:00:08]}
Kf5 {[%clk 00:00:08]} {[%emt 00:00:02]} 55. Bd2 {[%clk 00:00:05]} {[%emt
00:00:05]} Bb3 {[%clk 00:00:07]} {[%emt 00:00:03]} 56. Bc3 {[%clk 00:00:07]}
Bc4 {[%clk 00:00:08]} {[%emt 00:00:02]} 57. Bd2 {[%clk 00:00:08]} Bb3 {[%clk
00:00:09]} {[%emt 00:00:01]} 58. Bc3 {[%clk 00:00:09]} Ke5 {[%emt 00:00:03]} 59.
Ke4+ {[%emt 00:01:08]} 1/2-1/2

[ePGN "0.1;DGT LiveChess/2.2.6"]

[Event "Campeonato de España Universitario Relámpago"]
[Site "Zaragoza, Spain"]
[Date "2024.04.24"]
[Round "7.1"]
[White "Vela Frago, Alberto"]
[Black "Fernandez Lopez, Ruben"]
[Result "1-0"]
[TimeControl "3 min + 2 sg"]
[WhiteFideId "24531685"]
[BlackFideId "24518298"]
[WhiteElo "2203"]
[BlackElo "2262"]

1. c4 {[%clk 00:03:03]} {[%emt 00:18:11]} e5 {[%clk 00:03:02]} {[%emt
00:00:04]} 2. Nc3 {[%clk 00:03:04]} Nc6 {[%clk 00:03:03]} {[%emt 00:00:02]} 3.
Nf3 {[%clk 00:03:05]} d6 {[%clk 00:03:04]} 4. d4 {[%clk 00:03:06]} exd4 {[%clk
00:03:04]} {[%emt 00:00:03]} 5. Nxd4 {[%clk 00:03:07]} Nge7 {[%clk 00:03:05]}
{[%emt 00:00:01]} 6. g3 {[%clk 00:03:07]} {[%emt 00:00:02]} g6 {[%clk
00:03:06]} {[%emt 00:00:02]} 7. Bg2 {[%clk 00:03:07]} {[%emt 00:00:02]} Bg7
{[%clk 00:03:06]} {[%emt 00:00:01]} 8. Nxc6 {[%clk 00:03:06]} {[%emt 00:00:03]}
bxc6 {[%clk 00:03:07]} {[%emt 00:00:02]} 9. O-O {[%clk 00:03:05]} {[%emt
00:00:02]} O-O {[%clk 00:03:07]} {[%emt 00:00:02]} 10. Qc2 {[%clk 00:03:04]}
{[%emt 00:00:03]} Be6 {[%clk 00:03:07]} {[%emt 00:00:01]} 11. b3 {[%clk
00:03:01]} {[%emt 00:00:05]} Qd7 {[%clk 00:03:03]} {[%emt 00:00:07]} 12. Rd1
{[%clk 00:02:59]} {[%emt 00:00:04]} Rab8 {[%clk 00:02:44]} {[%emt 00:00:21]} 13.
Bb2 {[%clk 00:03:00]} Bh3 {[%clk 00:02:36]} {[%emt 00:00:10]} 14. Ne4 {[%clk
00:03:01]} {[%emt 00:00:01]} Bxg2 {[%clk 00:02:32]} {[%emt 00:00:06]} 15. Kxg2
{[%clk 00:02:53]} {[%emt 00:00:10]} Qe6 {[%clk 00:02:19]} {[%emt 00:00:16]} 16.
Bxg7 {[%clk 00:02:45]} {[%emt 00:00:09]} Kxg7 {[%clk 00:02:19]} {[%emt
00:00:02]} 17. Qc3+ {[%clk 00:02:47]} f6 {[%clk 00:02:17]} {[%emt 00:00:04]} 18.
Ng5 {[%clk 00:02:38]} {[%emt 00:00:10]} Qf5 {[%clk 00:02:17]} {[%emt 00:00:02]}
19. Qe3 {[%clk 00:02:13]} {[%emt 00:00:27]} Qxg5 {[%clk 00:01:35]} {[%emt
00:00:45]} 20. Qxe7+ {[%clk 00:02:14]} {[%emt 00:00:01]} Rf7 {[%clk 00:01:36]}
21. Qe4 {[%clk 00:02:15]} {[%emt 00:00:02]} c5 {[%clk 00:01:34]} {[%emt
00:00:03]} 22. Rd5 {[%clk 00:02:10]} {[%emt 00:00:07]} Qh6 {[%clk 00:01:35]}
{[%emt 00:00:02]} 23. h4 {[%clk 00:01:49]} {[%emt 00:00:23]} Kg8 {[%clk
00:01:28]} {[%emt 00:00:08]} 24. h5 {[%clk 00:01:45]} {[%emt 00:00:06]} f5
{[%clk 00:01:27]} {[%emt 00:00:03]} 25. Qe6 {[%clk 00:01:30]} {[%emt 00:00:16]}
Qg7 {[%clk 00:01:24]} {[%emt 00:00:05]} 26. hxg6 {[%clk 00:01:18]} {[%emt
00:00:15]} hxg6 {[%clk 00:01:25]} {[%emt 00:00:01]} 27. Rad1 {[%clk 00:01:10]}
{[%emt 00:00:10]} Qf6 {[%clk 00:01:25]} {[%emt 00:00:01]} 28. Qxf6 {[%clk
00:01:07]} {[%emt 00:00:05]} Rxf6 {[%clk 00:01:26]} {[%emt 00:00:01]} 29. Kf3
{[%clk 00:01:07]} {[%emt 00:00:02]} Re8 {[%clk 00:01:24]} {[%emt 00:00:04]} 30.
R1d3 {[%clk 00:01:06]} {[%emt 00:00:03]} Kf7 {[%clk 00:01:24]} {[%emt
00:00:02]} 31. Re3 {[%clk 00:01:05]} {[%emt 00:00:03]} Rxe3+ {[%clk 00:01:24]}
{[%emt 00:00:02]} 32. Kxe3 {[%clk 00:01:06]} {[%emt 00:00:01]} Re6+ {[%clk
00:01:25]} {[%emt 00:00:01]} 33. Kf3 {[%clk 00:01:06]} {[%emt 00:00:01]} Kf6
{[%clk 00:01:21]} {[%emt 00:00:05]} 34. Rd2 {[%clk 00:01:00]} {[%emt 00:00:08]}
Re4 {[%clk 00:01:11]} {[%emt 00:00:12]} 35. Rd1 {[%clk 00:00:56]} {[%emt
00:00:06]} g5 {[%clk 00:01:11]} {[%emt 00:00:03]} 36. e3 {[%clk 00:00:57]}
{[%emt 00:00:01]} g4+ {[%clk 00:00:47]} {[%emt 00:00:25]} 37. Ke2 {[%clk
00:00:58]} Re8 {[%clk 00:00:48]} {[%emt 00:00:01]} 38. Rh1 {[%clk 00:00:58]}
{[%emt 00:00:02]} Kg6 {[%clk 00:00:48]} {[%emt 00:00:02]} 39. Kd3 {[%clk
00:00:58]} {[%emt 00:00:02]} a5 {[%clk 00:00:32]} {[%emt 00:00:18]} 40. Kc3
{[%clk 00:00:59]} {[%emt 00:00:01]} Ra8 {[%clk 00:00:30]} {[%emt 00:00:04]} 41.
a3 {[%clk 00:00:50]} {[%emt 00:00:11]} Rb8 {[%clk 00:00:29]} {[%emt 00:00:03]}
42. Re1 {[%clk 00:00:46]} {[%emt 00:00:05]} Rh8 {[%clk 00:00:27]} {[%emt
00:00:04]} 43. e4 {[%clk 00:00:44]} {[%emt 00:00:05]} Rh2 {[%clk 00:00:10]}
{[%emt 00:00:19]} 44. exf5+ {[%clk 00:00:45]} Kf6 {[%clk 00:00:12]} 45. Re2
{[%clk 00:00:40]} {[%emt 00:00:08]} c6 {[%clk 00:00:10]} {[%emt 00:00:04]} 46.
b4 {[%clk 00:00:24]} {[%emt 00:00:18]} axb4+ {[%clk 00:00:11]} {[%emt
00:00:02]} 47. axb4 {[%clk 00:00:25]} cxb4+ {[%clk 00:00:10]} {[%emt 00:00:03]}
48. Kxb4 {[%clk 00:00:26]} Kxf5 {[%clk 00:00:11]} {[%emt 00:00:01]} 49. Ka5
{[%clk 00:00:24]} {[%emt 00:00:04]} Rh1 {[%clk 00:00:10]} {[%emt 00:00:03]} 50.
Kb6 {[%clk 00:00:24]} {[%emt 00:00:02]} c5 {[%clk 00:00:08]} {[%emt 00:00:04]}
51. Rc2 {[%clk 00:00:16]} {[%emt 00:00:10]} Rd1 {[%clk 00:00:05]} {[%emt
00:00:06]} 52. Re2 {[%clk 00:00:10]} {[%emt 00:00:08]} Rc1 {[%emt 00:00:04]} 53.
Kc6 Rxc4 {[%emt 00:00:02]} 54. Kxd6 Rc1 55. Kd5 {[%emt 00:00:02]} c4 56. Re5
{[%emt 00:00:03]} Kf6 57. Re4 {[%emt 00:00:04]} 1-0

[Event "Campeonato de España Universitario Relámpago"]
[Site "Zaragoza, Spain"]
[Date "2024.04.24"]
[Round "7.2"]
[White "Garcia Jimenez, Santiago"]
[Black "Lianes Garcia, Marcos"]
[Result "1/2-1/2"]
[TimeControl "3 min + 2 sg"]
[WhiteFideId "24543241"]
[BlackFideId "32060777"]
[WhiteElo "2053"]
[BlackElo "2382"]

1. c4 {[%clk 00:03:02]} {[%emt 00:00:02]} g6 {[%clk 00:03:03]} {[%emt
00:00:02]} 2. Nc3 {[%clk 00:03:01]} {[%emt 00:00:03]} Bg7 {[%clk 00:03:04]} 3.
g3 {[%clk 00:03:01]} {[%emt 00:00:02]} c5 {[%clk 00:03:04]} {[%emt 00:00:02]} 4.
e4 {[%clk 00:03:00]} {[%emt 00:00:03]} Nc6 {[%clk 00:03:04]} {[%emt 00:00:02]}
5. Bg2 {[%clk 00:03:00]} {[%emt 00:00:02]} d6 {[%clk 00:03:01]} {[%emt
00:00:05]} 6. d3 {[%clk 00:02:58]} {[%emt 00:00:03]} e5 {[%clk 00:02:57]}
{[%emt 00:00:07]} 7. Nge2 {[%clk 00:02:57]} {[%emt 00:00:03]} Nge7 {[%clk
00:02:58]} {[%emt 00:00:01]} 8. O-O {[%clk 00:02:55]} {[%emt 00:00:04]} O-O
{[%clk 00:02:58]} {[%emt 00:00:01]} 9. f4 {[%clk 00:02:38]} {[%emt 00:00:19]}
f5 {[%clk 00:02:52]} {[%emt 00:00:08]} 10. Be3 {[%clk 00:02:37]} {[%emt
00:00:04]} Be6 {[%clk 00:02:51]} {[%emt 00:00:03]} 11. Qd2 {[%clk 00:02:34]}
{[%emt 00:00:05]} Qd7 {[%clk 00:02:52]} 12. a3 {[%clk 00:02:32]} {[%emt
00:00:03]} Rad8 {[%clk 00:02:34]} {[%emt 00:00:20]} 13. Nd5 {[%clk 00:02:26]}
{[%emt 00:00:08]} Nd4 {[%clk 00:02:05]} {[%emt 00:00:32]} 14. Bxd4 {[%clk
00:02:18]} {[%emt 00:00:10]} cxd4 {[%clk 00:02:02]} {[%emt 00:00:05]} 15. b4
{[%clk 00:02:15]} {[%emt 00:00:04]} fxe4 {[%clk 00:01:43]} {[%emt 00:00:20]} 16.
dxe4 {[%clk 00:01:56]} {[%emt 00:00:21]} Nxd5 {[%clk 00:01:39]} {[%emt
00:00:07]} 17. cxd5 {[%clk 00:01:53]} {[%emt 00:00:05]} Bg4 {[%clk 00:01:39]}
{[%emt 00:00:02]} 18. Bf3 {[%clk 00:01:49]} {[%emt 00:00:06]} Bh3 {[%clk
00:01:36]} {[%emt 00:00:04]} 19. Bg2 {[%clk 00:01:49]} {[%emt 00:00:02]} Bxg2
{[%clk 00:01:08]} {[%emt 00:00:30]} 20. Kxg2 {[%clk 00:01:50]} d3 {[%clk
00:01:01]} {[%emt 00:00:09]} 21. Qxd3 {[%clk 00:01:48]} {[%emt 00:00:04]} exf4
{[%clk 00:01:02]} 22. Rad1 {[%clk 00:00:56]} {[%emt 00:00:54]} fxg3 {[%clk
00:01:03]} {[%emt 00:00:02]} 23. hxg3 {[%clk 00:00:51]} {[%emt 00:00:07]} Be5
{[%clk 00:00:53]} {[%emt 00:00:13]} 24. Rf3 {[%clk 00:00:18]} {[%emt 00:00:36]}
Rxf3 {[%clk 00:00:50]} {[%emt 00:00:05]} 25. Qxf3 {[%clk 00:00:18]} {[%emt
00:00:02]} Rf8 {[%clk 00:00:51]} {[%emt 00:00:01]} 26. Qe3 {[%clk 00:00:15]}
{[%emt 00:00:04]} Qg4 {[%clk 00:00:39]} {[%emt 00:00:15]} 27. Rf1 {[%clk
00:00:11]} {[%emt 00:00:05]} Rc8 {[%clk 00:00:37]} {[%emt 00:00:04]} 28. Qf3
{[%clk 00:00:11]} {[%emt 00:00:03]} Qxf3+ {[%clk 00:00:37]} {[%emt 00:00:02]}
29. Rxf3 {[%clk 00:00:12]} Rc2 {[%clk 00:00:24]} {[%emt 00:00:15]} 30. Kf1
{[%clk 00:00:10]} {[%emt 00:00:04]} Kg7 {[%clk 00:00:20]} {[%emt 00:00:06]} 31.
Nf4 {[%clk 00:00:11]} {[%emt 00:00:01]} Bxf4 {[%clk 00:00:21]} {[%emt
00:00:02]} 32. gxf4 {[%clk 00:00:11]} {[%emt 00:00:01]} Kf6 {[%clk 00:00:19]}
{[%emt 00:00:04]} 33. Re3 {[%clk 00:00:12]} {[%emt 00:00:02]} Rd2 {[%clk
00:00:15]} {[%emt 00:00:06]} 34. e5+ {[%clk 00:00:09]} {[%emt 00:00:05]} Ke7
{[%clk 00:00:15]} {[%emt 00:00:02]} 35. exd6+ {[%clk 00:00:08]} {[%emt
00:00:03]} Kxd6 {[%clk 00:00:16]} 36. Re6+ {[%clk 00:00:09]} Kxd5 {[%clk
00:00:14]} {[%emt 00:00:04]} 37. Re7 {[%clk 00:00:10]} Kc6 {[%clk 00:00:14]}
{[%emt 00:00:03]} 38. Rxh7 {[%clk 00:00:10]} {[%emt 00:00:02]} Rd3 {[%clk
00:00:15]} {[%emt 00:00:01]} 39. Rh6 {[%clk 00:00:10]} {[%emt 00:00:02]} Rf3+
{[%clk 00:00:11]} {[%emt 00:00:05]} 40. Ke2 {[%clk 00:00:09]} {[%emt 00:00:03]}
Rxf4 {[%clk 00:00:12]} {[%emt 00:00:01]} 41. Rxg6+ {[%clk 00:00:10]} {[%emt
00:00:01]} Kb5 {[%clk 00:00:13]} {[%emt 00:00:01]} 42. Rg5+ {[%clk 00:00:10]}
{[%emt 00:00:02]} Kb6 {[%clk 00:00:06]} {[%emt 00:00:10]} 43. Rg3 {[%clk
00:00:08]} {[%emt 00:00:04]} Rf7 {[%clk 00:00:05]} {[%emt 00:00:04]} 44. Kd3
{[%clk 00:00:08]} {[%emt 00:00:01]} Kb5 {[%clk 00:00:06]} 45. Kc3 {[%clk
00:00:07]} {[%emt 00:00:04]} Ka4 {[%clk 00:00:06]} {[%emt 00:00:02]} 46. Kb2
{[%clk 00:00:07]} b6 {[%clk 00:00:06]} {[%emt 00:00:03]} 47. Ka2 {[%clk
00:00:07]} {[%emt 00:00:02]} Rf2+ {[%clk 00:00:07]} {[%emt 00:00:01]} 48. Kb1
{[%clk 00:00:08]} Re2 {[%clk 00:00:07]} {[%emt 00:00:03]} 49. Ka1 {[%clk
00:00:09]} Kb5 {[%clk 00:00:07]} {[%emt 00:00:02]} 50. Kb1 {[%clk 00:00:10]}
{[%emt 00:00:02]} Kc4 {[%clk 00:00:09]} 51. Kc1 {[%clk 00:00:10]} {[%emt
00:00:02]} Ra2 {[%clk 00:00:08]} {[%emt 00:00:02]} 52. Kb1 {[%clk 00:00:11]}
Rd2 {[%clk 00:00:09]} 53. Kc1 {[%clk 00:00:13]} Rd3 {[%clk 00:00:08]} {[%emt
00:00:05]} 54. Rxd3 {[%clk 00:00:12]} {[%emt 00:00:02]} Kxd3 {[%clk 00:00:09]}
55. Kb2 {[%clk 00:00:13]} b5 {[%clk 00:00:07]} {[%emt 00:00:07]} 56. Kb3 {[%clk
00:00:13]} {[%emt 00:00:02]} Kd2 {[%clk 00:00:08]} 57. a4 {[%clk 00:00:13]}
{[%emt 00:00:02]} a6 {[%clk 00:00:08]} {[%emt 00:00:02]} 58. axb5 {[%clk
00:00:11]} {[%emt 00:00:04]} axb5 {[%clk 00:00:10]} 59. Kb2 {[%clk 00:00:12]}
Ke3 {[%clk 00:00:11]} {[%emt 00:00:03]} 60. Kc3 {[%clk 00:00:13]} Ke4 {[%clk
00:00:12]} {[%emt 00:00:02]} 61. Kc2 {[%clk 00:00:09]} {[%emt 00:00:06]} Kd4
{[%clk 00:00:12]} {[%emt 00:00:02]} 62. Kd2 {[%clk 00:00:09]} {[%emt 00:00:01]}
Ke4 {[%clk 00:00:12]} {[%emt 00:00:02]} 63. Kc2 {[%clk 00:00:10]} {[%emt
00:00:01]} Ke3 {[%clk 00:00:11]} {[%emt 00:00:03]} 64. Kc3 {[%clk 00:00:12]}
Ke4 {[%clk 00:00:11]} {[%emt 00:00:02]} 65. Kc2 {[%clk 00:00:13]} Ke5 {[%clk
00:00:11]} {[%emt 00:00:03]} 66. Kc3 {[%clk 00:00:13]} {[%emt 00:00:02]} Ke4
{[%clk 00:00:11]} {[%emt 00:00:02]} 67. Kc2 {[%clk 00:00:14]} Kd4 {[%clk
00:00:12]} 68. Kd2 {[%clk 00:00:16]} Kc4 {[%clk 00:00:12]} {[%emt 00:00:02]} 69.
Kc2 {[%clk 00:00:17]} Kxb4 {[%clk 00:00:10]} {[%emt 00:00:04]} 70. Kb2 {[%clk
00:00:19]} Kc4 {[%clk 00:00:11]} {[%emt 00:00:01]} 71. Kc2 {[%clk 00:00:20]}
Kb4 {[%clk 00:00:11]} {[%emt 00:00:03]} 72. Kb2 {[%clk 00:00:21]} Ka4 {[%clk
00:00:12]} 73. Ka2 {[%clk 00:00:22]} {[%emt 00:00:01]} b4 {[%clk 00:00:13]} 74.
Kb2 {[%clk 00:00:23]} b3 {[%clk 00:00:15]} 75. Kb1 {[%clk 00:00:23]} {[%emt
00:00:03]} Kb4 {[%clk 00:00:16]} {[%emt 00:00:01]} 76. Kb2 Kc4 77. Kb1 {[%clk
00:00:25]} Kc3 78. Kc1 Kb4 {[%clk 00:00:21]} 79. Kb2 {[%clk 00:00:28]} Ka4
{[%clk 00:00:22]} 80. Kb1 {[%clk 00:00:26]} {[%emt 00:00:02]} Kb5 {[%clk
00:00:21]} {[%emt 00:00:04]} 81. Kb2 {[%clk 00:00:27]} {[%emt 00:00:02]} Kc4
{[%clk 00:00:22]} 82. Kb1 {[%clk 00:00:28]} Kc3 {[%clk 00:00:23]} {[%emt
00:00:01]} 83. Kc1 {[%clk 00:00:29]} b2+ {[%clk 00:00:23]} {[%emt 00:00:01]} 84.
Kb1 {[%clk 00:00:30]} {[%emt 00:00:01]} Kb3 {[%clk 00:00:25]} 1/2-1/2

[Event "Campeonato de España Universitario Relámpago"]
[Site "Zaragoza, Spain"]
[Date "2024.04.24"]
[Round "7.3"]
[White "Lopez Mulet, Inigo"]
[Black "Luque Saiz, Andres"]
[Result "1/2-1/2"]
[TimeControl "3 min + 2 sg"]
[WhiteFideId "22235620"]
[BlackFideId "24510793"]
[WhiteElo "2347"]
[BlackElo "2346"]

1. Nf3 {[%clk 00:03:01]} {[%emt 00:00:02]} c5 {[%clk 00:03:01]} {[%emt
00:00:03]} 2. g3 {[%clk 00:02:56]} {[%emt 00:00:07]} Nc6 {[%clk 00:03:01]}
{[%emt 00:00:02]} 3. Bg2 {[%clk 00:02:57]} {[%emt 00:00:01]} g6 {[%clk
00:02:59]} {[%emt 00:00:05]} 4. O-O {[%clk 00:02:27]} {[%emt 00:00:31]} Bg7
{[%clk 00:03:00]} 5. e4 {[%clk 00:02:06]} {[%emt 00:00:24]} d6 {[%clk
00:02:45]} {[%emt 00:00:17]} 6. d3 {[%clk 00:02:02]} {[%emt 00:00:05]} e6
{[%clk 00:02:39]} {[%emt 00:00:08]} 7. c3 {[%clk 00:01:48]} {[%emt 00:00:17]}
Nge7 {[%clk 00:01:38]} {[%emt 00:01:03]} 8. Be3 {[%clk 00:01:41]} {[%emt
00:00:09]} O-O {[%clk 00:01:34]} {[%emt 00:00:06]} 9. Qd2 {[%clk 00:01:35]}
{[%emt 00:00:08]} f5 {[%clk 00:01:25]} {[%emt 00:00:12]} 10. Bh6 {[%clk
00:01:30]} {[%emt 00:00:06]} Ne5 {[%clk 00:01:02]} {[%emt 00:00:25]} 11. Bxg7
{[%clk 00:01:19]} {[%emt 00:00:13]} Nxf3+ {[%clk 00:00:51]} {[%emt 00:00:13]}
12. Bxf3 {[%clk 00:01:20]} Kxg7 {[%clk 00:00:53]} 13. d4 {[%clk 00:01:16]}
{[%emt 00:00:07]} cxd4 {[%clk 00:00:50]} {[%emt 00:00:05]} 14. Qxd4+ {[%clk
00:00:54]} {[%emt 00:00:23]} e5 {[%clk 00:00:51]} {[%emt 00:00:01]} 15. Qd3
{[%clk 00:00:50]} {[%emt 00:00:07]} fxe4 {[%clk 00:00:40]} {[%emt 00:00:13]} 16.
Bxe4 {[%clk 00:00:42]} {[%emt 00:00:09]} d5 {[%clk 00:00:32]} {[%emt 00:00:10]}
17. Bg2 {[%clk 00:00:42]} {[%emt 00:00:02]} Be6 {[%clk 00:00:28]} {[%emt
00:00:06]} 18. Nd2 {[%clk 00:00:37]} {[%emt 00:00:07]} Qb6 {[%clk 00:00:21]}
{[%emt 00:00:09]} 19. Rae1 {[%clk 00:00:29]} {[%emt 00:00:09]} e4 {[%clk
00:00:22]} {[%emt 00:00:02]} 20. Qc2 {[%clk 00:00:27]} {[%emt 00:00:04]} Nf5
{[%clk 00:00:16]} {[%emt 00:00:09]} 21. c4 {[%clk 00:00:11]} {[%emt 00:00:18]}
Rac8 {[%clk 00:00:12]} {[%emt 00:00:05]} 22. Qb3 {[%clk 00:00:09]} {[%emt
00:00:04]} Qxb3 {[%clk 00:00:10]} {[%emt 00:00:04]} 23. axb3 {[%clk 00:00:10]}
Nd4 {[%clk 00:00:06]} {[%emt 00:00:06]} 24. cxd5 {[%clk 00:00:10]} {[%emt
00:00:03]} Bxd5 {[%clk 00:00:08]} 25. Bxe4 {[%clk 00:00:08]} {[%emt 00:00:03]}
Bxe4 {[%clk 00:00:07]} {[%emt 00:00:03]} 26. Rxe4 {[%clk 00:00:08]} {[%emt
00:00:01]} Nf3+ {[%clk 00:00:07]} {[%emt 00:00:02]} 27. Nxf3 {[%clk 00:00:09]}
{[%emt 00:00:01]} Rxf3 {[%clk 00:00:09]} 28. Re7+ {[%clk 00:00:09]} {[%emt
00:00:01]} Rf7 {[%clk 00:00:10]} {[%emt 00:00:01]} 29. Rfe1 {[%clk 00:00:08]}
{[%emt 00:00:03]} Rc2 {[%clk 00:00:08]} {[%emt 00:00:03]} 30. R1e2 {[%clk
00:00:05]} {[%emt 00:00:05]} Rxe2 31. Rxe2 {[%clk 00:00:06]} Rd7 {[%clk
00:00:06]} {[%emt 00:00:01]} 32. Kf1 {[%clk 00:00:05]} {[%emt 00:00:03]} Kf6
{[%clk 00:00:07]} 33. Re3 {[%clk 00:00:06]} {[%emt 00:00:01]} Rd2 {[%clk
00:00:08]} {[%emt 00:00:01]} 34. Re2 {[%clk 00:00:07]} Rd3 {[%clk 00:00:09]} 35.
Re3 {[%clk 00:00:08]} {[%emt 00:00:03]} Rd2 {[%clk 00:00:10]} {[%emt 00:00:01]}
1/2-1/2